bitfinex/quotes_ETHUSD_20260114
["timestamp","ask_amount","ask_price","bid_price","bid_amount"]
[1768401020864,7.14665337,3318.9,3317.5,0.09032472]
[1768401021100,1.12039119,3318.9,3317.5,0.09032472]
[1768401021302,6.02784068,3319.1,3317.5,2.00138244]
[1768401021510,1.91405209,3319.0,3317.5,0.1901552]
[1768401021710,1.88387981,3319.0,3317.0,25.26521966]
[1768401021915,1.88387981,3318.8,3317.0,14.5]
[1768401022066,1.88387981,3318.6,3316.5,1.72090252]
[1768401022266,1.88387981,3318.4,3316.9,3.01485899]
[1768401022516,6.02736422,3318.2,3316.8,3.01495417]
[1768401022671,6.02736422,3318.2,3316.8,6.02990834]
[1768401023216,3.01368211,3318.2,3316.8,6.02990834]
[1768401023713,6.02736422,3318.2,3316.8,6.02990834]
[1768401024014,2.50545503,3318.1,3316.9,0.94539525]
[1768401024197,1.88387981,3318.0,3317.0,0.409]
[1768401024379,2.73716173,3318.0,3317.0,0.409]
[1768401024580,3.0139546,3317.9,3317.0,3.42372772]
[1768401024907,0.85328192,3318.0,3317.1,0.03014681]
[1768401025116,6.02681934,3318.5,3317.0,6.4385001]
[1768401025414,0.19017228,3318.4,3316.2,0.409]
[1768401025567,1.52572206,3318.3,3315.7,1.81122724]
[1768401025761,0.16,3318.1,3315.4,3.10650767]
[1768401025970,0.03017228,3318.0,3315.9,3.01568821]
[1768401026306,0.03017228,3318.0,3315.5,0.409]
[1768401026307,1.88387981,3317.5,3315.5,0.409]
[1768401026466,1.88387981,3317.1,3315.6,3.01604536]
[1768401026973,1.88387981,3317.1,3315.3,0.409]
[1768401027301,1.88387981,3317.1,3315.5,6.03223115]
[1768401027474,1.88387981,3317.1,3315.6,0.09032472]
[1768401027878,1.88387981,3317.1,3315.6,0.12048517]
[1768401028106,1.88387981,3317.1,3315.7,1.08897552]
[1768401028481,3.01477238,3317.0,3315.8,6.03172688]
[1768401028669,6.02954476,3317.0,3315.8,6.03172688]
[1768401028876,6.02954476,3317.0,3315.8,3.01586344]
[1768401029070,6.02954476,3317.0,3315.7,1.08897552]
[1768401029296,1.88387981,3316.8,3315.0,3.10687793]
[1768401029496,1.88387981,3316.6,3314.9,3.42565189]
[1768401029671,1.88387981,3316.4,3315.4,3.01622142]
[1768401029875,0.22918798,3316.5,3315.5,0.03016136]
[1768401030083,2.29187981,3316.8,3315.0,0.409]
[1768401030494,2.29187981,3316.8,3315.5,3.01613532]
[1768401030696,2.29187981,3316.8,3315.0,0.409]
[1768401030697,1.88387981,3316.6,3315.0,0.409]
[1768401030904,1.88387981,3316.6,3314.3,3.01721717]
[1768401031107,1.88387981,3316.4,3314.4,3.18918766]
[1768401031269,1.88387981,3316.4,3314.5,3.01703438]
[1768401031475,1.88387981,3316.4,3314.4,0.17209025]
[1768401031818,1.88387981,3316.4,3314.2,0.409]
[1768401032175,1.88387981,3316.4,3314.2,3.42631279]
[1768401032373,1.88387981,3316.4,3314.2,0.409]
[1768401032611,1.88387981,3316.0,3314.2,0.409]
[1768401032798,1.88387981,3315.8,3314.2,0.409]
[1768401032990,0.88387981,3315.6,3314.3,0.34263963]
[1768401033382,0.88387981,3315.6,3314.2,0.409]
[1768401033580,0.88387981,3315.6,3313.1,3.10856496]
[1768401033581,0.88387981,3315.6,3313.1,1.72090252]
[1768401033784,0.88387981,3315.6,3313.4,0.409]
[1768401034293,0.88387981,3315.6,3313.6,3.01780774]
[1768401034684,0.88387981,3315.6,3313.4,3.42703854]
[1768401034685,1.88387981,3315.4,3313.5,3.01794881]
[1768401034878,1.88387981,3315.2,3313.6,0.34269488]
[1768401035320,0.408,3315.4,3313.7,1.72090252]
[1768401035712,2.29187981,3315.4,3313.6,0.34269488]
[1768401036014,1.88387981,3315.4,3313.6,0.34269488]
[1768401036210,2.97710869,3315.3,3313.6,2.0635974]
[1768401036423,1.88387981,3315.4,3313.7,1.72090252]
[1768401036620,1.88387981,3315.4,3313.6,0.34269488]
[1768401036824,1.88387981,3315.2,3313.8,3.01768362]
[1768401037026,9.04895484,3315.3,3313.8,3.01768362]
[1768401037027,3.01625933,3315.4,3313.9,1.75107844]
[1768401037232,3.01625933,3315.4,3314.0,1.08041293]
[1768401037436,3.01619364,3315.5,3314.0,2.83149046]
[1768401037602,3.01568154,3316.0,3314.1,1.81122724]
[1768401037942,8.32183433,3316.8,3314.9,1.72090252]
[1768401038103,3.42295417,3316.8,3315.1,1.72090252]
[1768401038308,6.43795452,3316.8,3315.1,1.72090252]
[1768401038511,3.01495417,3316.8,3315.2,1.81122724]
[1768401038748,3.01468149,3317.1,3315.4,1.81122724]
[1768401038971,6.0284543,3317.6,3315.6,1.81122724]
[1768401039109,6.0284543,3317.6,3315.9,1.72090252]
[1768401039310,6.02772754,3318.0,3316.2,1.81122724]
[1768401039523,3.61663652,3318.0,3316.3,2.31102524]
[1768401039756,1.88387981,3318.6,3316.6,1.81122724]
[1768401039757,6.02681934,3318.5,3316.6,1.81122724]
[1768401039958,6.02681934,3318.5,3316.8,1.72090252]
[1768401040122,0.002,3318.7,3317.2,1.81122724]
[1768401040549,0.002,3317.6,3317.2,1.81122724]
[1768401040847,0.002,3318.7,3317.5,6.02863602]
[1768401041022,0.002,3318.7,3317.6,0.409]
[1768401042854,0.002,3318.7,3317.7,3.01413629]
[1768401043053,0.002,3318.7,3317.1,0.409]
[1768401043250,0.002,3318.7,3317.1,1.86803247]
[1768401043450,0.002,3318.7,3317.6,3.01418931]
[1768401043655,0.002,3318.7,3317.2,17.51451229]
[1768401043850,0.002,3318.7,3317.3,0.409]
[1768401044053,0.002,3319.0,3317.7,1.72090252]
[1768401044257,0.002,3319.0,3317.8,0.47350671]
[1768401044452,0.002,3319.0,3317.9,0.409]
[1768401045058,0.002,3319.0,3318.0,3.01386377]
[1768401045457,0.002,3319.0,3318.0,0.409]
[1768401046699,0.002,3319.0,3317.9,3.01394429]
[1768401047454,0.002,3319.0,3318.0,3.42283534]
[1768401047775,0.002,3319.0,3317.9,0.52083535]
[1768401047947,0.002,3319.0,3318.1,0.409]
[1768401049181,0.002,3319.0,3318.1,3.42277101]
[1768401049363,0.002,3319.0,3318.1,0.409]
[1768401051284,0.002,3319.0,3318.1,3.42273464]
[1768401051583,0.002,3319.0,3318.0,0.409]
[1768401051982,0.002,3319.0,3318.0,3.42280617]
[1768401052167,0.002,3319.0,3318.0,4.06648724]
[1768401052690,0.002,3319.0,3318.0,1.05268107]
[1768401052986,0.002,3319.0,3318.0,4.06648278]
[1768401053183,0.002,3318.7,3318.1,3.01374826]
[1768401053999,0.002,3318.7,3314.7,0.09032472]
[1768401054000,1.8771144,3318.7,3317.0,1.80858383]
[1768401054187,0.002,3318.7,3317.7,3.01411753]
[1768401054391,0.002,3318.7,3317.5,1.80858383]
[1768401054557,0.002,3318.7,3317.5,4.8228805]
[1768401054764,0.002,3318.7,3317.7,3.01405603]
[1768401055078,0.002,3318.7,3317.5,2.69987188]
[1768401055277,0.002,3318.7,3317.7,6.02827258]
[1768401055586,0.002,3318.7,3317.7,3.01413629]
[1768401056183,0.002,3318.7,3317.2,1.80858383]
[1768401056384,0.002,3318.7,3317.3,2.21758383]
[1768401056679,0.002,3318.7,3317.6,3.01422715]
[1768401056886,2.5207237,3318.7,3317.1,0.18085838]
[1768401057057,2.5207237,3318.7,3317.2,3.4235413]
[1768401057257,1.8751144,3318.5,3316.7,3.01502684]
[1768401057484,1.8751144,3318.3,3316.8,3.31642161]
[1768401057689,1.8751144,3318.3,3316.8,0.30150268]
[1768401058100,1.8751144,3318.3,3317.0,3.01470037]
[1768401058276,1.39283898,3318.4,3317.2,3.01458107]
[1768401058598,6.02663772,3318.6,3317.2,3.01456346]
[1768401058898,3.01523579,3318.7,3317.3,2.21758383]
[1768401059698,0.002,3318.7,3317.5,1.80858383]
[1768401060098,0.002,3318.7,3317.7,1.80858383]
[1768401060282,0.002,3318.7,3317.9,1.80858383]
[1768401060681,0.002,3319.0,3318.1,1.80858383]
[1768401061378,0.002,3319.0,3318.3,1.80858383]
[1768401061783,0.002,3319.0,3318.4,8.24458479]
[1768401061983,0.002,3319.0,3318.4,5.23108431]
[1768401062386,0.002,3319.0,3318.4,2.21758383]
[1768401062593,1.8771144,3319.0,3317.5,1.80858383]
[1768401062822,2.2851144,3319.0,3316.7,3.01500123]
[1768401062979,2.2851144,3319.0,3317.1,0.409]
[1768401063175,2.10382584,3318.9,3317.1,0.409]
[1768401063380,1.8751144,3318.1,3315.8,1.80858383]
[1768401063716,1.8751144,3318.1,3314.2,5.6782532]
[1768401063717,1.8751144,3317.5,3315.3,1.98970655]
[1768401063915,1.8751144,3316.6,3314.6,1.80858383]
[1768401064134,0.408,3316.9,3315.4,3.0162273]
[1768401064279,6.22536165,3317.4,3315.5,1.83874519]
[1768401064620,0.408,3317.9,3315.5,1.80858383]
[1768401064787,2.2831144,3317.9,3315.5,1.80858383]
[1768401065125,0.408,3317.8,3315.5,1.80858383]
[1768401065322,1.8751144,3317.6,3315.6,1.08572657]
[1768401065535,1.8751144,3317.6,3315.7,0.03015954]
[1768401065692,0.22831144,3317.7,3315.8,2.21758383]
[1768401065895,3.2418337,3318.9,3316.9,1.80858383]
[1768401065896,0.22871144,3318.9,3316.9,1.80858383]
[1768401066107,3.01524257,3318.7,3317.1,1.80858383]
[1768401066317,6.02848514,3318.7,3317.0,0.59889085]
[1768401066498,9.04172771,3318.7,3316.8,14.5]
[1768401066818,9.04172771,3318.7,3315.9,15.16918717]
[1768401066819,1.8751144,3318.6,3316.0,2.30790855]
[1768401067018,6.02847064,3318.7,3316.3,1.80858383]
[1768401067220,6.43647064,3318.7,3316.5,1.80858383]
[1768401067426,0.64364706,3318.6,3316.6,0.409]
[1768401067609,0.64364706,3318.6,3316.5,1.80858383]
[1768401067813,1.8751144,3318.4,3316.7,3.01504507]
[1768401068014,1.96543912,3318.4,3316.3,0.409]
[1768401068198,0.09032472,3317.8,3316.2,3.01549017]
[1768401068393,2.2831144,3317.7,3316.1,3.01558968]
[1768401068598,1.96543912,3317.6,3315.7,3.42492798]
[1768401068795,1.96543912,3316.8,3315.0,3.01650706]
[1768401069040,1.96543912,3316.8,3315.1,3.01649445]
[1768401069041,0.408,3316.7,3315.1,3.01649445]
[1768401069340,2.2831144,3316.7,3315.2,3.01638675]
[1768401069539,0.23734391,3316.6,3314.6,16.71758383]
[1768401069694,6.02918122,3317.2,3314.7,1.83875247]
[1768401069899,0.408,3316.9,3315.0,4.82513174]
[1768401070107,6.02918122,3317.2,3315.0,4.82513174]
[1768401070108,0.408,3317.0,3315.1,0.030165]
[1768401070312,0.20557638,3317.8,3315.7,1.80858383]
[1768401070501,6.02718258,3318.3,3316.0,1.80858383]
[1768401070701,6.02718258,3318.3,3315.8,0.62904948]
[1768401070702,9.04077387,3318.3,3316.2,1.80858383]
[1768401070901,6.02718258,3318.3,3316.3,14.5]
[1768401071131,6.02718258,3318.3,3316.4,0.409]
[1768401071835,0.09032472,3317.7,3316.1,3.01559036]
[1768401072135,0.60271826,3318.2,3316.3,6.03079836]
[1768401072310,0.408,3317.8,3316.3,3.01538963]
[1768401072633,0.408,3317.8,3315.8,3.01580701]
[1768401072634,1.96543912,3317.5,3315.8,3.01580701]
[1768401072850,1.96543912,3317.5,3316.0,3.01566569]
[1768401072851,2.07165831,3317.4,3316.0,3.01566569]
[1768401073155,2.07165831,3317.4,3315.4,0.409]
[1768401073329,0.408,3317.3,3316.0,3.01567502]
[1768401073537,0.408,3317.3,3316.1,3.0155595]
[1768401074057,6.43591481,3317.9,3316.1,0.0301559]
[1768401074239,0.83110292,3317.8,3316.0,0.409]
[1768401074444,0.09032472,3317.6,3316.0,0.409]
[1768401074824,1.8751144,3317.7,3316.0,0.409]
[1768401075022,1.8751144,3317.7,3314.9,3.10699162]
[1768401075023,1.96543912,3317.4,3314.8,1.80858383]
[1768401075222,1.96543912,3317.4,3314.2,3.10756032]
[1768401075223,0.09032472,3316.4,3314.3,1.80858383]
[1768401075531,0.49832472,3316.4,3315.2,3.01637848]
[1768401075730,0.49832472,3316.4,3315.2,3.01639374]
[1768401075942,9.04349922,3317.3,3315.2,0.409]
[1768401076142,0.408,3317.2,3315.2,0.409]
[1768401076342,0.09032472,3317.0,3315.2,0.409]
[1768401076736,0.408,3316.9,3315.1,0.409]
[1768401076934,0.09032472,3316.8,3315.1,0.409]
[1768401077239,0.09032472,3317.0,3315.2,0.03016409]
[1768401077443,0.09032472,3317.0,3315.9,0.001]
[1768401077642,0.408,3316.9,3315.9,0.001]
[1768401078049,0.09032472,3316.1,3314.3,1.80858383]
[1768401078356,0.09032472,3316.3,3314.5,0.19894422]
[1768401078357,0.49832472,3316.0,3314.5,0.19894422]
[1768401078661,0.09032472,3315.7,3313.8,2.21758383]
[1768401079060,0.09032472,3315.7,3314.0,3.01743254]
[1768401079257,0.09032472,3315.7,3313.5,3.01790798]
[1768401079258,0.09032472,3315.3,3313.4,14.5]
[1768401079459,0.09032472,3315.1,3313.8,3.01767729]
[1768401079627,0.09032472,3315.1,3313.5,3.0178787]
[1768401079832,0.09032472,3315.3,3313.4,0.409]
[1768401080032,6.43981852,3315.2,3313.5,6.03585863]
[1768401080258,0.09032472,3315.1,3313.5,3.01790179]
[1768401080469,0.09032472,3314.9,3313.2,3.01819682]
[1768401080671,0.09032472,3314.5,3312.6,0.001]
[1768401080859,0.09032472,3314.4,3312.6,0.001]
[1768401081058,0.16,3314.8,3312.9,3.01848865]
[1768401081294,0.19961186,3314.7,3312.6,0.001]
[1768401081468,0.407,3314.6,3312.9,3.01843308]
[1768401081646,0.19961186,3314.7,3312.6,0.001]
[1768401081847,0.19961186,3314.7,3313.4,3.01804792]
[1768401081848,0.407,3314.6,3313.4,3.01804792]
[1768401082047,6.03409262,3314.5,3313.4,0.60361607]
[1768401082371,3.01704631,3314.5,3313.4,3.01803384]
[1768401082777,9.05113893,3314.5,3313.0,3.018393]
[1768401082945,0.09032472,3314.4,3312.8,3.01850842]
[1768401083150,0.09032472,3314.4,3312.6,3.01976437]
[1768401083151,0.09032472,3314.4,3312.6,3.0197617]
[1768401083349,0.09032472,3314.4,3312.9,3.01850155]
[1768401083551,0.91414637,3314.3,3312.6,2.33457357]
[1768401083767,6.03409262,3314.5,3313.3,3.0181278]
[1768401084100,3.62353852,3314.7,3312.6,5.35335028]
[1768401084101,3.01695528,3314.6,3312.7,10.98063055]
[1768401084278,9.05086584,3314.6,3312.7,7.96194489]
[1768401084475,0.96574777,3314.5,3312.8,0.83719449]
[1768401084660,2.90318419,3314.5,3312.8,0.83719449]
[1768401084861,0.09032472,3314.3,3312.6,3.01973075]
[1768401085057,0.09032472,3314.3,3312.6,0.001]
[1768401085256,1.93743642,3314.1,3312.6,0.001]
[1768401085582,1.93743642,3314.1,3311.1,0.09032472]
[1768401085583,1.93743642,3313.2,3310.8,3.02035049]
[1768401085884,1.93743642,3313.2,3310.3,1.01255319]
[1768401085885,0.19374364,3313.1,3310.9,2.52865081]
[1768401086047,0.19374364,3313.1,3310.9,1.92457357]
[1768401086048,0.09032472,3312.7,3310.9,1.92457357]
[1768401086253,0.09032472,3312.4,3311.0,0.03020235]
[1768401086449,0.09032472,3312.3,3311.0,0.03020235]
[1768401086751,0.09032472,3312.1,3311.0,0.30504819]
[1768401086952,0.09032472,3312.1,3309.0,3.02203514]
[1768401086953,0.09032472,3311.6,3309.0,3.02203514]
[1768401087265,0.09032472,3311.6,3310.1,3.02105337]
[1768401087266,0.09032472,3311.4,3310.1,3.02105337]
[1768401087470,0.09032472,3311.9,3310.4,3.02071579]
[1768401087682,0.09032472,3311.8,3310.3,0.409]
[1768401087888,0.09032472,3311.5,3310.1,1.92457357]
[1768401088089,6.03974148,3311.4,3310.1,3.02099318]
[1768401088289,3.01987074,3311.4,3310.1,3.02099318]
[1768401088491,6.03974148,3311.4,3310.0,3.02114551]
[1768401088677,0.30198707,3311.3,3310.1,3.02103302]
[1768401088879,0.30198707,3311.3,3310.1,6.45108978]
[1768401089185,3.01987074,3311.4,3310.1,6.45108978]
[1768401089386,3.01914135,3312.2,3310.1,6.45108978]
[1768401089589,9.05742405,3312.2,3310.1,9.47214654]
[1768401089800,9.05742405,3312.2,3310.1,6.04208978]
[1768401090101,9.05797101,3312.0,3310.6,0.001]
[1768401090289,1.8471117,3311.9,3310.6,0.001]
[1768401090800,9.05797101,3312.0,3310.6,0.001]
[1768401090991,3.01932367,3312.0,3310.6,0.001]
[1768401091189,6.44962506,3312.0,3310.6,0.001]
[1768401091489,9.46894873,3312.0,3310.6,0.001]
[1768401091882,11.31606043,3312.0,3310.6,0.001]
[1768401092408,6.44962506,3312.0,3310.7,0.409]
[1768401092780,8.29673676,3312.0,3310.6,0.001]
[1768401092971,0.83870615,3311.9,3310.6,0.001]
[1768401094188,9.058518,3311.8,3310.6,0.001]
[1768401094504,6.039012,3311.8,3310.6,0.001]
[1768401094705,9.058518,3311.8,3310.6,0.41]
[1768401094907,9.058518,3311.8,3310.6,0.001]
[1768401095087,0.98972241,3311.7,3310.7,0.409]
[1768401095283,2.83683411,3311.7,3309.9,3.02119799]
[1768401095500,1.8471117,3311.6,3309.8,3.0213032]
[1768401095685,1.8471117,3311.6,3309.9,0.43921239]
[1768401095885,1.8471117,3311.6,3309.0,14.5]
[1768401095886,0.09032472,3311.5,3310.0,0.409]
[1768401096087,6.03992388,3311.3,3310.1,0.43921056]
[1768401096404,3.01996194,3311.3,3310.2,3.0209655]
[1768401096609,6.03992388,3311.3,3310.1,3.02101818]
[1768401096803,0.62336675,3311.2,3310.3,0.409]
[1768401097006,3.21364263,3311.4,3310.4,0.03020782]
[1768401097304,6.23354162,3311.4,3310.4,0.409]
[1768401097487,6.23354162,3311.4,3310.1,6.04207494]
[1768401097488,6.23354162,3311.4,3310.5,0.409]
[1768401097894,0.19374364,3311.4,3310.5,0.409]
[1768401098104,0.19374364,3311.4,3310.1,6.04207494]
[1768401098105,6.03846502,3312.1,3310.6,3.42960049]
[1768401098293,3.01923251,3312.1,3310.6,8.37477455]
[1768401098493,0.03145404,3312.0,3310.6,8.37477455]
[1768401098712,6.03846502,3312.1,3310.7,0.409]
[1768401098906,0.63530054,3312.0,3310.8,0.83747745]
[1768401099207,0.6038465,3312.0,3310.8,1.24647745]
[1768401099588,3.01877679,3312.6,3310.9,0.03020326]
[1768401099801,6.03755358,3312.6,3310.9,1.95477683]
[1768401100106,3.0183212,3313.1,3311.2,1.92457357]
[1768401100275,6.0366424,3313.1,3311.2,1.92457357]
[1768401100478,1.09020215,3313.0,3311.3,0.62393455]
[1768401100806,1.09020215,3313.0,3311.4,0.409]
[1768401101004,0.03145404,3312.9,3311.3,0.62393455]
[1768401101392,0.03145404,3312.9,3311.4,0.409]
[1768401101595,1.09020215,3313.0,3311.4,0.409]
[1768401101908,1.8471117,3312.8,3311.0,3.02019786]
[1768401102103,9.05633037,3312.6,3311.1,3.42909289]
[1768401102505,9.05633037,3312.6,3311.1,6.04023725]
[1768401102677,3.01877679,3312.6,3311.2,0.409]
[1768401102900,9.0549636,3313.1,3311.3,2.56949729]
[1768401103104,9.0549636,3313.1,3311.4,1.92457357]
[1768401103304,9.0549636,3313.1,3311.5,0.409]
[1768401103731,9.0549636,3313.1,3311.4,1.92457357]
[1768401103732,1.8471117,3313.0,3311.4,0.409]
[1768401103935,1.43283965,3312.9,3311.4,0.409]
[1768401104132,1.8471117,3312.6,3310.4,3.02077403]
[1768401104441,1.8471117,3312.5,3310.5,0.409]
[1768401104624,1.8471117,3312.5,3310.6,1.95477957]
[1768401104813,0.22551117,3312.4,3310.7,2.56995153]
[1768401105018,0.408,3312.6,3310.8,1.95477775]
[1768401105340,0.408,3312.6,3310.8,1.92457357]
[1768401105841,0.408,3312.6,3310.7,0.23637796]
[1768401105842,2.2551117,3312.6,3310.9,0.409]
[1768401106250,1.811,3313.5,3311.7,1.92457357]
[1768401106251,0.002,3313.4,3311.7,1.92457357]
[1768401106431,0.4988,3313.3,3311.8,2.5350634]
[1768401106740,0.4988,3313.3,3311.9,0.409]
[1768401107316,0.4988,3313.3,3311.3,1.92457357]
[1768401107516,0.4988,3313.3,3311.4,0.409]
[1768401107717,0.4988,3313.3,3311.5,0.23335736]
[1768401108038,0.4988,3313.3,3311.2,3.02005315]
[1768401108039,1.8471117,3313.1,3311.2,3.02005315]
[1768401108202,1.8471117,3313.1,3310.8,1.92457357]
[1768401108203,9.05523693,3313.0,3311.3,0.409]
[1768401108414,9.05523693,3313.0,3311.3,6.44890586]
[1768401108624,0.03145404,3312.9,3311.3,6.44890586]
[1768401108905,0.9086691,3312.8,3311.4,0.64489059]
[1768401109539,0.94012314,3312.8,3311.4,0.64489059]
[1768401110040,0.09032472,3312.4,3311.0,0.409]
[1768401110245,0.09032472,3312.4,3310.7,4.94504827]
[1768401110246,9.0571506,3312.3,3310.7,1.92457357]
[1768401110450,0.09032472,3312.2,3310.9,0.409]
[1768401110643,0.09032472,3312.0,3310.9,0.409]
[1768401110953,0.49832472,3312.2,3310.3,1.82298843]
[1768401111242,3.0190502,3312.3,3311.0,7.86344351]
[1768401111445,3.01868566,3312.7,3311.0,7.86344351]
[1768401111647,9.05605698,3312.7,3311.0,7.86344351]
[1768401111834,0.12177876,3312.6,3311.0,3.02021951]
[1768401112039,0.09032472,3312.4,3311.1,0.409]
[1768401112240,6.0381004,3312.3,3311.1,3.42906988]
[1768401112760,3.0190502,3312.3,3311.1,6.44921424]
[1768401112960,3.0190502,3312.3,3311.1,3.02006988]
[1768401113132,3.0190502,3312.3,3311.2,0.409]
[1768401113318,0.30190502,3312.2,3310.9,4.84329078]
[1768401113514,0.03145404,3312.1,3310.8,3.0203883]
[1768401113719,0.30190502,3312.2,3310.9,0.30203883]
[1768401113914,0.30190502,3312.2,3310.4,1.82298843]
[1768401113915,0.03145404,3312.1,3310.4,1.82298843]
[1768401114162,0.03145404,3312.1,3310.4,2.23198843]
[1768401114347,9.05797101,3312.0,3310.5,3.02065679]
[1768401114915,9.05797101,3312.0,3310.4,4.84374481]
[1768401115254,9.05797101,3312.0,3310.6,0.409]
[1768401115439,0.9057971,3311.9,3310.3,3.21339055]
[1768401115655,0.9057971,3311.9,3310.6,0.409]
[1768401115957,0.99612182,3311.9,3310.7,0.409]
[1768401116126,0.99612182,3311.9,3310.8,0.001]
[1768401116538,6.039012,3311.8,3310.8,0.001]
[1768401116867,0.69448091,3311.7,3310.8,0.001]
[1768401117767,3.019506,3311.8,3310.8,0.001]
[1768401117997,3.019506,3311.8,3310.8,1.82398843]
[1768401118197,9.058518,3311.8,3310.8,0.001]
[1768401118370,0.9058518,3311.7,3310.8,0.001]
[1768401118775,6.03937672,3311.6,3310.8,0.001]
[1768401119179,9.05906508,3311.6,3310.8,0.001]
[1768401119566,6.03937672,3311.6,3310.8,0.001]
[1768401120081,3.01968836,3311.6,3310.8,0.001]
[1768401120283,6.03937672,3311.6,3310.8,0.001]
[1768401120584,6.03937672,3311.6,3310.2,0.001]
[1768401120585,0.60393767,3311.5,3310.3,0.409]
[1768401120788,9.05961222,3311.4,3310.2,0.001]
[1768401121102,12.07948296,3311.4,3310.2,0.001]
[1768401121304,9.05961222,3311.4,3310.2,0.001]
[1768401121467,3.0188193,3312.6,3310.2,1.85419808]
[1768401121688,0.09032472,3312.3,3310.4,1.82298843]
[1768401122019,0.09032472,3312.3,3310.5,2.23198843]
[1768401122525,0.09032472,3312.3,3310.6,0.409]
[1768401122687,9.05742405,3312.2,3310.6,3.02060049]
[1768401123031,1.09438023,3312.1,3310.8,1.82298843]
[1768401123544,1.09438023,3312.1,3310.7,0.52525889]
[1768401123545,6.0382827,3312.2,3311.0,1.82298843]
[1768401123694,3.01914135,3312.2,3311.0,1.82298843]
[1768401123893,6.0366424,3313.1,3311.6,1.82298843]
[1768401124134,9.0549636,3313.1,3311.6,1.82298843]
[1768401124422,12.0732848,3313.1,3311.7,0.409]
[1768401124748,1.23878252,3313.0,3311.6,0.409]
[1768401125024,6.03700684,3312.9,3311.7,1.82298843]
[1768401125208,9.05551026,3312.9,3311.7,1.82298843]
[1768401125525,9.05551026,3312.9,3311.1,3.02013925]
[1768401125730,13.87006721,3312.9,3311.2,1.82298843]
[1768401125934,3.1410586,3312.8,3310.8,2.53282173]
[1768401126094,1.79605353,3312.7,3310.8,1.82298843]
[1768401126398,1.79605353,3312.4,3310.6,0.409]
[1768401126722,2.23550757,3312.3,3310.5,0.409]
[1768401126891,12.0765654,3312.2,3310.6,1.82298843]
[1768401127097,12.0765654,3312.2,3310.5,0.409]
[1768401127540,1.79605353,3312.1,3310.5,3.42968473]
[1768401127694,1.08534776,3312.0,3310.6,2.5749569]
[1768401128035,1.08534776,3312.0,3310.2,0.001]
[1768401128036,1.82750757,3311.9,3310.2,1.82398843]
[1768401128192,2.20405353,3311.8,3310.2,0.41]
[1768401128393,1.82750757,3311.7,3309.7,4.84440132]
[1768401128593,0.03145404,3311.6,3311.2,0.001]
[1768401128895,13.87517173,3311.5,3309.6,0.409]
[1768401129089,13.87517173,3311.5,3309.7,1.85320264]
[1768401129090,1.38751717,3311.4,3309.7,1.85320264]
[1768401129321,1.38751717,3311.4,3309.9,1.82298843]
[1768401129519,6.0395591,3311.5,3309.9,1.82298843]
[1768401129927,3.01977955,3311.5,3309.9,1.82298843]
[1768401130418,6.0395591,3311.5,3309.9,1.82298843]
[1768401130620,0.03145404,3311.4,3309.9,1.82298843]
[1768401130829,9.05933865,3311.5,3310.0,2.23198843]
[1768401131123,0.93738791,3311.4,3310.0,0.409]
[1768401131291,0.90593387,3311.4,3310.0,3.43014042]
[1768401131486,0.39257134,3311.3,3310.0,3.43014042]
[1768401131720,0.39257134,3311.3,3310.0,0.409]
[1768401131923,0.408,3311.2,3309.2,4.84483302]
[1768401132091,0.408,3311.2,3309.3,5.25377522]
[1768401132705,0.408,3311.2,3309.5,3.02160286]
[1768401132904,6.04047114,3311.0,3309.6,1.82298843]
[1768401133104,6.04047114,3311.0,3309.8,1.82298843]
[1768401133305,6.04047114,3311.0,3309.9,0.409]
[1768401133516,0.90606571,3310.9,3309.5,3.54696199]
[1768401133707,0.90606571,3310.9,3309.6,0.409]
[1768401133905,3.02023557,3311.0,3309.7,1.82298843]
[1768401134103,6.04047114,3311.0,3309.7,1.82298843]
[1768401134423,6.04047114,3311.0,3309.8,0.409]
[1768401134632,3.02007246,3311.2,3309.9,2.07639966]
[1768401134839,3.019506,3311.8,3309.9,2.07639966]
[1768401135133,6.03882966,3311.9,3310.1,1.82298843]
[1768401135331,0.64468297,3311.8,3310.3,1.82298843]
[1768401135501,0.64468297,3311.8,3310.4,0.409]
[1768401135704,0.03145404,3311.7,3310.5,0.409]
[1768401135901,0.73500769,3311.8,3310.5,0.409]
[1768401136102,0.73500769,3311.8,3310.2,0.78652845]
[1768401136308,0.16,3311.5,3309.6,2.23198843]
[1768401136514,0.408,3311.4,3310.0,1.82298843]
[1768401136711,0.408,3311.4,3310.1,1.85319899]
[1768401136916,3.01996194,3311.3,3310.3,3.02087424]
[1768401137117,3.01996194,3311.3,3310.3,6.04174848]
[1768401137345,3.01969275,3311.6,3310.4,1.82298843]
[1768401137554,6.0393855,3311.6,3310.4,1.82298843]
[1768401138843,3.01969275,3311.6,3310.4,1.85319625]
[1768401139049,3.01918361,3312.2,3310.6,1.82298843]
[1768401139418,6.0381004,3312.3,3310.6,1.82298843]
[1768401139617,9.08860464,3312.3,3310.8,1.82298843]
[1768401139838,9.0571506,3312.3,3310.8,1.82298843]
[1768401140050,9.0571506,3312.3,3310.9,0.409]
[1768401140242,9.0571506,3312.3,3311.0,0.409]
[1768401140539,6.0381004,3312.3,3311.0,0.409]
[1768401140739,0.60381004,3312.2,3311.0,0.409]
[1768401140908,0.60381004,3312.2,3310.8,1.82298843]
[1768401141114,6.03846502,3312.1,3311.1,0.409]
[1768401141622,6.03846502,3312.1,3311.1,3.42914236]
[1768401141812,3.01923251,3312.1,3311.1,8.32505534]
[1768401142013,6.03846502,3312.1,3311.1,5.30491098]
[1768401142548,6.03846502,3312.1,3311.2,0.409]
[1768401142750,6.03846502,3312.1,3310.7,16.37576862]
[1768401142751,9.05769753,3312.1,3310.7,16.37576862]
[1768401142911,0.12177876,3312.0,3310.2,1.87576862]
[1768401143112,10.68611537,3311.9,3310.3,5.49316143]
[1768401143336,10.68611537,3311.9,3310.4,1.87576862]
[1768401143648,3.01941483,3311.9,3310.4,1.90597644]
[1768401144007,6.03882966,3311.9,3310.4,1.87576862]
[1768401144211,9.05824449,3311.9,3310.4,1.87576862]
[1768401144524,1.84868466,3311.8,3310.5,0.409]
[1768401144718,2.75450911,3311.8,3310.5,0.409]
[1768401145124,9.05879154,3311.7,3310.5,0.409]
[1768401146044,0.408,3311.6,3310.1,0.409]
[1768401146214,0.408,3311.6,3308.7,3.02331938]
[1768401146215,0.09032472,3311.4,3308.7,0.001]
[1768401146414,1.84868466,3311.1,3308.9,1.87576862]